bitfinex/quotes_BTCUSD_20250428
["timestamp","ask_amount","ask_price","bid_price","bid_amount"]
[1745838112716,0.49170534,95073.0,95072.0,0.0018494]
[1745838113597,0.47370534,95073.0,95072.0,0.0008494]
[1745838113991,0.47470534,95073.0,95072.0,0.0008494]
[1745838114756,0.47570534,95073.0,95072.0,0.0008494]
[1745838115575,0.68607,95073.0,95072.0,0.0008494]
[1745838115929,0.47570534,95073.0,95072.0,0.0008494]
[1745838116613,0.47370534,95073.0,95072.0,0.0008494]
[1745838116833,0.47470534,95073.0,95072.0,0.0008494]
[1745838117519,0.68507,95073.0,95072.0,0.0008494]
[1745838117936,0.68607,95073.0,95072.0,0.0008494]
[1745838118143,0.47570534,95073.0,95072.0,0.0008494]
[1745838119457,0.0288152,95073.0,95072.0,0.0956494]
[1745838119692,0.0288152,95073.0,95072.0,0.09957549]
[1745838119943,0.0288152,95073.0,95072.0,0.0956494]
[1745838120170,0.0288152,95073.0,95072.0,0.4980051]
[1745838120383,0.0278152,95073.0,95072.0,0.28763823]
[1745838120829,0.01017362,95073.0,95072.0,0.20253954]
[1745838121043,0.00917362,95073.0,95072.0,0.0956494]
[1745838121292,0.001,95073.0,95072.0,0.0976494]
[1745838121514,0.003,95073.0,95072.0,0.0976494]
[1745838123203,0.003,95073.0,95072.0,0.0976494]
[1745838127686,0.003,95073.0,95072.0,0.0514494]
[1745838128298,0.02265587,95073.0,95072.0,0.0514494]
[1745838128656,0.03002682,95073.0,95072.0,0.0514494]
[1745838133878,0.03002682,95073.0,95072.0,0.20643954]
[1745838134111,0.02265587,95073.0,95072.0,0.20643954]
[1745838134461,0.02265587,95073.0,95072.0,0.0995494]
[1745838134662,0.003,95073.0,95072.0,0.0995494]
[1745838135571,0.01037217,95073.0,95072.0,0.0995494]
[1745838138388,0.01037217,95073.0,95072.0,0.0514494]
[1745838138595,0.01037217,95073.0,95072.0,0.0028494]
[1745838138795,0.03003188,95073.0,95072.0,0.0028494]
[1745838145289,0.02703188,95073.0,95072.0,0.0008494]
[1745838145482,0.00937217,95073.0,95072.0,0.0068494]
[1745838145933,0.00837217,95073.0,95072.0,0.0048494]
[1745838146158,0.00937217,95073.0,95072.0,0.0068494]
[1745838146845,0.02904258,95073.0,95072.0,0.0068494]
[1745838147057,0.02904258,95073.0,95072.0,0.41780641]
[1745838147549,0.00937217,95073.0,95072.0,0.41780641]
[1745838148033,0.002,95073.0,95072.0,0.41780641]
[1745838149195,0.002,95073.0,95072.0,0.20743954]
[1745838149409,0.002,95073.0,95072.0,0.41780641]
[1745838149629,0.002,95073.0,95072.0,0.1005494]
[1745838151598,0.00938125,95073.0,95072.0,0.1005494]
[1745838151798,0.02906535,95073.0,95072.0,0.0518494]
[1745838158465,0.02906535,95073.0,95072.0,0.0068494]
[1745838159147,0.03890913,95073.0,95072.0,0.0068494]
[1745838159768,0.14579927,95073.0,95072.0,0.0068494]
[1745838160196,0.13595549,95073.0,95072.0,0.0068494]
[1745838160701,0.02906535,95073.0,95072.0,0.0068494]
[1745838161784,0.02906535,95073.0,95072.0,0.0550494]
[1745838162058,0.02906535,95073.0,95065.0,0.08886541]
[1745838162202,0.02906535,95073.0,95064.0,0.22090359]
[1745838162409,0.02906535,95073.0,95063.0,0.220906]
[1745838162626,0.0196841,95072.0,95064.0,0.22090367]
[1745838163002,0.0196841,95072.0,95071.0,0.21036909]
[1745838163185,0.001,95073.0,95072.0,0.21036687]
[1745838163392,0.002,95073.0,95072.0,0.21036687]
[1745838163591,0.02068204,95073.0,95072.0,0.21036687]
[1745838163972,0.02906276,95073.0,95072.0,0.21036687]
[1745838164238,0.02806276,95073.0,95072.0,0.21036687]
[1745838164967,0.02806276,95073.0,95072.0,0.25856687]
[1745838165627,0.02906276,95073.0,95072.0,0.25856687]
[1745838166408,0.02906276,95073.0,95072.0,0.36545701]
[1745838167113,0.02168204,95073.0,95072.0,0.36545701]
[1745838167326,0.002,95073.0,95072.0,0.36545701]
[1745838169886,0.002,95073.0,95072.0,0.60396871]
[1745838170100,0.001,95073.0,95072.0,0.60396871]
[1745838170456,0.00983717,95094.0,95078.0,0.01051768]
[1745838170717,0.00983717,95094.0,95077.0,0.22087343]
[1745838170995,0.00737755,95093.0,95077.0,0.22857426]
[1745838171142,0.02705102,95093.0,95077.0,0.22857426]
[1745838171345,0.00983717,95092.0,95077.0,0.22857426]
[1745838171549,0.00983717,95092.0,95078.0,0.01051768]
[1745838171712,0.00737755,95091.0,95078.0,0.01051768]
[1745838171905,0.01967347,95090.0,95078.0,0.01051768]
[1745838172345,0.00983717,95089.0,95077.0,0.01921862]
[1745838172594,0.03688819,95089.0,95077.0,0.01921862]
[1745838172795,0.03688819,95089.0,95078.0,0.01051768]
[1745838172998,0.03688819,95089.0,95077.0,0.00870083]
[1745838173220,0.02951064,95088.0,95077.0,0.01921862]
[1745838173708,0.00737755,95087.0,95078.0,0.01051768]
[1745838174020,0.02705102,95087.0,95078.0,0.01151768]
[1745838174202,0.01967347,95086.0,95078.0,0.001]
[1745838174416,0.02705102,95086.0,95079.0,0.01051756]
[1745838174762,0.01967347,95085.0,95079.0,0.01051756]
[1745838175361,0.01967347,95085.0,95078.0,0.2113536]
[1745838175362,0.01967347,95085.0,95078.0,0.001]
[1745838175563,0.02705102,95084.0,95077.0,0.01070083]
[1745838175765,0.02705102,95084.0,95077.0,0.003]
[1745838175971,0.02705102,95083.0,95078.0,0.01051768]
[1745838176399,0.02705102,95083.0,95079.0,0.004]
[1745838176599,0.01967347,95082.0,95079.0,0.004]
[1745838176804,0.01000677,95081.0,95079.0,0.004]
[1745838176997,0.49539014,95080.0,95079.0,0.005]
[1745838177200,0.54799718,95080.0,95079.0,0.004]
[1745838177418,0.34,95079.0,95053.0,0.00818241]
[1745838177759,0.34,95077.0,95056.0,0.00098541]
[1745838177869,0.34,95075.0,95056.0,0.00098541]
[1745838178121,0.34,95073.0,95056.0,0.00098541]
[1745838178333,0.02230338,95072.0,95056.0,0.00098541]
[1745838178740,0.01967347,95071.0,95056.0,0.00198541]
[1745838178940,0.01000751,95070.0,95056.0,0.00198541]
[1745838179169,0.12656361,95069.0,95056.0,0.00198541]
[1745838179372,0.0100076,95068.0,95056.0,0.00198541]
[1745838179574,0.01967347,95067.0,95056.0,0.01350552]
[1745838179773,0.01967347,95067.0,95058.0,0.01051989]
[1745838179974,0.00737755,95068.0,95058.0,0.01051989]
[1745838179975,0.01967347,95066.0,95059.0,0.0484]
[1745838180178,0.00737755,95065.0,95059.0,0.0484]
[1745838180602,0.01967347,95064.0,95061.0,0.01051956]
[1745838180831,0.01967347,95064.0,95063.0,0.21038679]
[1745838180958,0.01967347,95064.0,95063.0,0.31727693]
[1745838181357,0.008,95069.0,95067.0,0.21037757]
[1745838181573,0.008,95069.0,95066.0,0.22089873]
[1745838181772,0.008,95069.0,95067.0,0.21037654]
[1745838181989,0.00262943,95095.0,95065.0,0.01051911]
[1745838182186,0.26245119,95090.0,95066.0,0.10384]
[1745838182439,0.10951965,95089.0,95062.0,0.2385117]
[1745838182610,0.11689473,95089.0,95062.0,0.2385117]
[1745838182809,0.01966865,95088.0,95062.0,0.2385117]
[1745838183015,0.001,95069.0,95067.0,0.004]
[1745838183418,0.01966865,95068.0,95062.0,0.2385117]
[1745838183839,0.01966865,95068.0,95062.0,0.2395117]
[1745838184053,0.01966865,95068.0,95062.0,0.2385117]
[1745838184228,0.02704462,95067.0,95062.0,0.2385117]
[1745838184473,0.02704462,95067.0,95062.0,0.01051945]
[1745838184675,0.02704462,95067.0,95064.0,0.01051922]
[1745838184835,0.02704462,95066.0,95063.0,0.01051933]
[1745838185242,0.01966865,95065.0,95062.0,0.22390837]
[1745838185547,0.01966865,95064.0,95062.0,0.01351945]
[1745838185754,0.01966865,95064.0,95062.0,0.22790741]
[1745838186180,0.002,95068.0,95062.0,0.22490741]
[1745838186181,0.01966865,95063.0,95062.0,0.22490741]
[1745838186399,0.01475245,95063.0,95062.0,0.22090741]
[1745838186602,0.10951981,95087.0,95067.0,0.01051889]
[1745838186994,0.10951981,95087.0,95066.0,0.22089881]
[1745838187197,0.10951981,95087.0,95065.0,0.01051911]
[1745838187427,0.10951981,95087.0,95066.0,0.010519]
[1745838187628,0.00737555,95086.0,95066.0,0.010519]
[1745838187829,0.00737555,95086.0,95067.0,0.01151889]
[1745838188046,0.00737555,95086.0,95068.0,0.01051878]
[1745838188306,0.00737555,95086.0,95076.0,0.21035783]
[1745838188521,0.00737555,95085.0,95075.0,0.0488]
[1745838189124,0.00737555,95084.0,95075.0,0.0488]
[1745838189932,0.00737555,95083.0,95075.0,0.0488]
[1745838190130,0.00737555,95083.0,95075.0,0.0498]
[1745838190332,0.010005,95082.0,95075.0,0.0498]
[1745838190533,0.010005,95082.0,95075.0,0.0508]
[1745838190831,0.010005,95082.0,95075.0,0.0488]
[1745838191036,0.00737555,95081.0,95075.0,0.0488]
[1745838191377,0.00737555,95081.0,95075.0,0.0518]
[1745838191879,0.00737555,95080.0,95075.0,0.0518]
[1745838192495,0.00737555,95080.0,95075.0,0.0498]
[1745838192699,0.00737555,95079.0,95075.0,0.0488]
[1745838192905,0.00737555,95079.0,95076.0,0.0105179]
[1745838193076,0.00737555,95079.0,95076.0,0.01150731]
[1745838193254,0.00737555,95079.0,95077.0,0.21035367]
[1745838193482,0.00737555,95079.0,95077.0,0.00098883]
[1745838193686,0.00737555,95078.0,95076.0,0.00098884]
[1745838194269,0.00737555,95078.0,95077.0,0.004]
[1745838194728,0.00737555,95078.0,95077.0,0.006]
[1745838195594,0.00737555,95078.0,95077.0,0.002]
[1745838195783,0.00737555,95078.0,95076.0,0.00098884]
[1745838195981,0.00737555,95077.0,95076.0,0.00498884]
[1745838196201,0.00737555,95077.0,95076.0,0.00798884]
[1745838196423,0.00737555,95077.0,95076.0,0.00098884]
[1745838197374,0.00837555,95077.0,95076.0,0.003]
[1745838198761,0.0280473,95077.0,95076.0,0.003]
[1745838199338,0.0290473,95077.0,95076.0,0.008]
[1745838200992,0.03888531,95077.0,95076.0,0.008]
[1745838203603,0.48840512,95077.0,95076.0,0.008]
[1745838203803,0.48577545,95077.0,95076.0,0.008]
[1745838204007,0.544143,95077.0,95076.0,0.008]
[1745838204175,0.48577545,95077.0,95076.0,0.008]
[1745838205384,0.48477545,95077.0,95076.0,0.005]
[1745838205592,0.14377545,95077.0,95057.0,0.0938]
[1745838205784,0.14377545,95077.0,95076.0,0.001]
[1745838205785,0.03688531,95077.0,95076.0,0.001]
[1745838206261,0.03888531,95077.0,95076.0,0.002]
[1745838206457,0.03688531,95077.0,95076.0,0.001]
[1745838206605,0.03688531,95077.0,95059.0,0.08509869]
[1745838206808,0.00737555,95076.0,95059.0,0.08509869]
[1745838207022,0.0270473,95076.0,95059.0,0.08509869]
[1745838207216,0.00983801,95075.0,95059.0,0.08509869]
[1745838207416,0.01721356,95075.0,95059.0,0.08509869]
[1745838207652,0.01967175,95074.0,95059.0,0.08509869]
[1745838208010,0.02230149,95073.0,95059.0,0.08509869]
[1745838208198,0.0270473,95073.0,95061.0,0.22091041]
[1745838208429,0.01967175,95072.0,95063.0,0.01051933]
[1745838208639,0.01721356,95071.0,95064.0,0.01051922]
[1745838208881,0.01721356,95071.0,95067.0,0.01051889]
[1745838211722,0.0270473,95068.0,95067.0,0.0488]
[1745838212117,0.0270473,95068.0,95063.0,0.22090541]
[1745838212337,0.0270473,95068.0,95064.0,0.00098958]
[1745838212486,0.001,95068.0,95067.0,0.003]
[1745838212982,0.02068531,95068.0,95067.0,0.003]
[1745838213131,0.01968531,95068.0,95059.0,0.01051978]
[1745838213334,0.01968531,95067.0,95063.0,0.003]
[1745838213914,0.01968531,95066.0,95063.0,0.003]
[1745838214484,0.02706739,95065.0,95063.0,0.003]
[1745838214974,0.02706739,95064.0,95063.0,0.21338546]
[1745838215181,0.02706739,95064.0,95063.0,0.0496]
[1745838215559,0.02706739,95064.0,95063.0,0.0486]
[1745838215765,0.01968531,95064.0,95063.0,0.0496]
[1745838215925,0.01968531,95064.0,95063.0,0.26097673]
[1745838216189,0.02068531,95064.0,95063.0,0.25898679]
[1745838216388,0.02168531,95064.0,95063.0,0.25998679]
[1745838216614,0.02068531,95064.0,95063.0,0.25898679]
[1745838217220,0.02168531,95064.0,95063.0,0.25998679]
[1745838217670,0.02068531,95064.0,95063.0,0.25998679]
[1745838218048,0.02168531,95064.0,95063.0,0.26298679]
[1745838218483,0.01968531,95064.0,95063.0,0.25898679]
[1745838218720,0.02068531,95064.0,95063.0,0.26198679]
[1745838218906,0.02168531,95064.0,95063.0,0.26598679]
[1745838221491,0.02168531,95064.0,95063.0,0.76047693]
[1745838222020,0.002,95064.0,95063.0,0.76047693]
[1745838225551,0.002,95064.0,95063.0,0.99898863]
[1745838227436,0.002,95064.0,95063.0,0.2931117]
[1745838227638,0.002,95064.0,95063.0,0.2455117]
[1745838227839,0.02906892,95064.0,95063.0,0.2455117]
[1745838230619,0.02906892,95064.0,95063.0,0.2940117]
[1745838231632,0.02168643,95064.0,95063.0,0.2940117]
[1745838232848,0.02906849,95064.0,95063.0,0.2940117]
[1745838234023,0.02168643,95064.0,95063.0,0.2940117]
[1745838235542,0.02907186,95064.0,95063.0,0.2940117]
[1745838236588,0.02907186,95064.0,95063.0,0.61128863]
[1745838236796,0.02168643,95064.0,95063.0,0.61128863]
[1745838237006,0.02168643,95064.0,95063.0,0.40090184]
[1745838237214,0.02168643,95064.0,95063.0,0.61128863]
[1745838237633,0.02168643,95064.0,95063.0,0.45589849]
[1745838238413,0.02907278,95064.0,95063.0,0.45589849]
[1745838238613,0.02907278,95064.0,95063.0,1.00048863]
[1745838238614,0.00938635,95064.0,95063.0,1.00048863]
[1745838239210,0.002,95064.0,95063.0,1.00048863]
[1745838244984,0.01057898,95096.0,95081.0,0.05621734]
[1745838245181,0.0504492,95107.0,95092.0,0.01051613]
[1745838245182,0.0008492,95107.0,95092.0,0.01051613]
[1745838245390,0.0008492,95107.0,95100.0,0.01051524]
[1745838245588,0.0008492,95107.0,95100.0,0.21030435]
[1745838245589,0.02706328,95102.0,95100.0,0.21030435]
[1745838245813,0.02706328,95102.0,95099.0,0.01051535]
[1745838246144,0.02706328,95101.0,95100.0,0.21030479]
[1745838246403,0.02706328,95101.0,95099.0,0.01051535]
[1745838246607,0.01968239,95100.0,95099.0,0.01051535]
[1745838246788,0.01968239,95100.0,95099.0,0.22181002]
[1745838247016,0.01968239,95100.0,95099.0,0.27405978]
[1745838247226,0.0001364,95101.0,95100.0,0.21030494]
[1745838247423,0.0001364,95101.0,95100.0,0.31719508]
[1745838248041,4.383e-05,95101.0,95100.0,0.31719508]
[1745838248660,0.00104383,95101.0,95100.0,1.09174632]
[1745838248877,4.383e-05,95101.0,95100.0,1.08974632]
[1745838249287,0.00904383,95101.0,95100.0,1.09074632]
[1745838249416,4.383e-05,95101.0,95100.0,1.08974632]
[1745838249829,0.03904383,95101.0,95100.0,1.09174632]
[1745838250259,0.03904383,95101.0,95100.0,1.00664763]
[1745838250467,1e-08,95103.0,95102.0,0.85385306]
[1745838250644,0.00010541,95103.0,95102.0,1.0074432]
[1745838251232,0.00010541,95103.0,95102.0,1.0374246]
[1745838251636,0.00010541,95103.0,95102.0,1.1407846]
[1745838251832,0.01710541,95103.0,95102.0,1.1118032]
[1745838252032,0.01710541,95103.0,95102.0,1.1417846]
[1745838252243,0.01710541,95103.0,95102.0,1.1118032]
[1745838253164,0.02110541,95103.0,95102.0,1.1128032]
[1745838257395,0.02110541,95103.0,95102.0,1.09726235]
[1745838259798,0.02110541,95103.0,95102.0,1.1128032]
[1745838268808,0.0008492,95107.0,95106.0,0.76583252]
[1745838269086,0.0008492,95107.0,95106.0,0.96432266]
[1745838269316,0.0008492,95107.0,95106.0,1.12512266]
[1745838269706,0.0008492,95107.0,95106.0,1.01432266]
[1745838270070,0.0008492,95114.0,95111.0,0.70852146]
[1745838270276,0.0008492,95114.0,95111.0,0.58426536]
[1745838270473,0.0008492,95114.0,95111.0,0.79454597]
[1745838272303,0.0008492,95114.0,95111.0,0.80908682]
[1745838272457,0.002,95129.0,95122.0,0.76479715]
[1745838272657,0.002,95129.0,95122.0,1.08654598]
[1745838273690,0.002,95129.0,95122.0,1.18962598]
[1745838276459,0.002,95129.0,95122.0,1.23672598]
[1745838278863,0.0008486,95146.0,95133.0,0.55454085]
[1745838279159,0.0008486,95146.0,95141.0,0.59621431]
[1745838279369,0.00098531,95142.0,95141.0,0.70310445]
[1745838280337,0.00098531,95142.0,95141.0,0.93250399]
[1745838280750,0.00098531,95142.0,95141.0,0.92582142]
[1745838280944,0.00098531,95142.0,95141.0,0.93627375]
[1745838281147,0.00098531,95142.0,95141.0,1.03935375]
[1745838285766,0.00098531,95142.0,95141.0,0.99335375]
[1745838291789,0.00098531,95142.0,95141.0,1.14796982]
[1745838294376,0.00098531,95142.0,95141.0,1.1032946]
[1745838294582,0.00098531,95142.0,95141.0,1.14796982]
[1745838298886,0.00098531,95142.0,95141.0,1.1032946]
[1745838299369,0.002,95149.0,95148.0,0.2]
[1745838299551,0.0004243,95162.0,95161.0,0.55017013]
[1745838299759,0.00087982,95162.0,95161.0,0.65706027]
[1745838300763,0.00087982,95162.0,95161.0,0.75990027]
[1745838304772,0.00087982,95162.0,95161.0,0.97475896]
[1745838310763,0.00087982,95162.0,95161.0,0.97475896]
[1745838312208,0.00087982,95162.0,95161.0,0.87191896]
[1745838312406,0.00087982,95162.0,95161.0,0.97475896]
[1745838313254,0.002,95169.0,95161.0,0.97475896]
[1745838313255,0.002,95169.0,95166.0,0.01050795]
[1745838313449,0.002,95169.0,95168.0,0.55015467]
[1745838313450,0.00210055,95169.0,95168.0,0.55015467]
[1745838313650,0.00210055,95169.0,95168.0,0.88644435]
[1745838314257,0.00210055,95169.0,95168.0,0.89440087]
[1745838317250,0.00210055,95169.0,95168.0,0.99720087]
[1745838323345,0.00210055,95169.0,95168.0,0.89440087]
[1745838323551,0.00210055,95169.0,95168.0,0.99720087]
[1745838324559,0.0004243,95181.0,95178.0,0.01050662]
[1745838324671,0.0004243,95181.0,95180.0,0.56466902]
[1745838324878,0.0004243,95181.0,95180.0,0.67155916]
[1745838325929,0.0004243,95181.0,95180.0,0.6819047]
[1745838328306,0.0004243,95181.0,95180.0,0.89676339]
[1745838330484,0.0004243,95181.0,95180.0,0.6819047]
[1745838331371,0.0004243,95181.0,95180.0,0.68928702]
[1745838331573,0.0004243,95181.0,95180.0,0.69117423]
[1745838334113,0.0004243,95181.0,95180.0,0.79373423]
[1745838335087,0.0004243,95181.0,95180.0,0.82371694]
[1745838336517,0.0004243,95181.0,95180.0,0.81898886]
[1745838339572,0.0004242,95201.0,95200.0,0.21008403]
[1745838339780,0.00056076,95201.0,95200.0,0.67249656]
[1745838339977,0.00056076,95201.0,95200.0,0.73034511]
[1745838341620,0.00056076,95201.0,95200.0,0.76807377]
[1745838344584,0.00056076,95201.0,95200.0,0.73809106]
[1745838347242,0.00056076,95201.0,95200.0,0.76807377]
[1745838349000,0.00056076,95201.0,95200.0,0.81567377]
[1745838349804,1e-08,95201.0,95200.0,0.92647377]
[1745838350003,1e-08,95203.0,95202.0,0.77002047]
[1745838350307,1e-08,95209.0,95208.0,0.90388245]
[1745838350507,1e-08,95209.0,95208.0,1.0407553]
[1745838350820,1e-08,95209.0,95208.0,1.07558531]
[1745838351042,1e-08,95209.0,95208.0,1.04958926]
[1745838351619,1e-08,95209.0,95208.0,0.97493133]
[1745838352018,1e-08,95209.0,95208.0,1.01960655]
[1745838352221,1e-08,95209.0,95208.0,0.97493133]
[1745838352371,1e-08,95209.0,95208.0,1.01960655]
[1745838352537,1e-08,95209.0,95208.0,0.97493133]
[1745838352737,1e-08,95209.0,95208.0,1.01960655]
[1745838352943,1e-08,95219.0,95218.0,0.85968516]
[1745838353139,1e-08,95219.0,95218.0,0.9665753]
[1745838353347,1e-08,95219.0,95218.0,1.0787605]
[1745838357175,1e-08,95229.0,95228.0,0.51883833]
[1745838357383,1e-08,95229.0,95228.0,1.28072847]
[1745838357554,1e-08,95229.0,95228.0,1.29019513]
[1745838357977,1e-08,95229.0,95228.0,1.29817215]
[1745838358178,1e-08,95229.0,95228.0,1.34557215]
[1745838359129,1e-08,95229.0,95228.0,1.37555486]
[1745838359331,1e-08,95229.0,95228.0,1.34557215]
[1745838360568,1e-08,95229.0,95228.0,1.30089693]
[1745838360826,1e-08,95229.0,95228.0,1.34557215]
[1745838361455,1e-08,95229.0,95228.0,1.44789215]
[1745838362234,1e-08,95229.0,95228.0,1.34557215]
[1745838362395,1e-08,95229.0,95228.0,1.44789215]
[1745838362613,0.0004239,95248.0,95247.0,0.56452121]
[1745838362842,0.0004239,95248.0,95247.0,0.68087693]
[1745838362843,0.00056046,95248.0,95247.0,0.68087693]
[1745838363282,0.00432173,95263.0,95257.0,0.2]
[1745838363455,0.0008795,95258.0,95257.0,0.96957443]
[1745838363652,0.0008795,95258.0,95257.0,0.98313687]
[1745838364103,0.0008795,95258.0,95257.0,0.88081687]
[1745838364305,0.0008795,95258.0,95257.0,0.98313687]
[1745838365278,0.00432173,95263.0,95257.0,1.22783556]
[1745838365279,1e-08,95263.0,95257.0,1.22783556]
[1745838365443,0.00532478,95288.0,95273.0,0.74992306]
[1745838365600,0.049,95278.0,95273.0,0.8568132]
[1745838365814,0.049,95284.0,95273.0,0.8806209]
[1745838366425,0.00080962,95274.0,95273.0,0.8806209]
[1745838368557,0.06744675,95283.0,95282.0,0.54990323]
[1745838368685,0.01960417,95298.0,95296.0,0.40987239]
[1745838368893,0.0001,95299.0,95296.0,0.40987239]
[1745838368894,0.0472,95299.0,95296.0,0.96813655]
[1745838369260,0.0472,95299.0,95296.0,0.55826416]
[1745838369813,0.0001,95299.0,95296.0,0.55926416]
[1745838370217,0.0001,95299.0,95296.0,0.55826416]
[1745838370832,0.0001,95299.0,95296.0,0.56629769]
[1745838371557,0.0001,95299.0,95296.0,0.56829769]
[1745838372057,0.0001,95299.0,95296.0,0.56629769]
[1745838373164,0.0001,95299.0,95296.0,0.77617008]
[1745838373739,0.0001,95299.0,95296.0,0.99071093]
[1745838374120,0.0001,95299.0,95296.0,1.02069364]
[1745838374734,0.0004239,95313.0,95301.0,0.01049306]
[1745838374916,0.0004239,95313.0,95303.0,0.46143099]
[1745838375207,0.0609181,95323.0,95322.0,0.2]
[1745838375406,0.0609181,95323.0,95322.0,0.97446077]
[1745838375545,0.0609181,95323.0,95322.0,0.98239124]
[1745838376159,0.0609181,95323.0,95322.0,0.98284624]
[1745838376449,0.0609181,95323.0,95322.0,0.96830539]
[1745838377109,0.0609181,95323.0,95322.0,0.65625024]
[1745838377299,0.0609181,95323.0,95322.0,0.76635537]
[1745838379210,0.0609181,95323.0,95322.0,0.78089622]
[1745838379411,0.0609181,95323.0,95322.0,0.76635537]
[1745838379837,0.0609181,95323.0,95322.0,0.56635537]
[1745838380112,0.0609181,95323.0,95322.0,0.46411537]
[1745838380354,0.0609181,95323.0,95322.0,0.56635537]
[1745838380733,0.0609181,95323.0,95322.0,0.77617052]
[1745838380943,0.0609181,95323.0,95322.0,0.79071137]
[1745838387939,0.0004242,95325.0,95324.0,0.5643516]
[1745838388160,0.0004242,95325.0,95324.0,0.77324174]
[1745838388360,0.0004242,95325.0,95324.0,0.78335965]
[1745838389302,0.0004242,95325.0,95324.0,0.78435965]
[1745838389630,0.0004242,95325.0,95324.0,0.5745489]
[1745838390060,0.0004242,95325.0,95324.0,0.78435965]
[1745838390419,0.0004242,95325.0,95324.0,0.82903487]
[1745838390560,0.0004242,95325.0,95324.0,0.78435965]
[1745838390917,0.0004242,95325.0,95324.0,0.68235965]
[1745838391060,0.0004242,95325.0,95324.0,0.78435965]
[1745838391701,0.0004242,95325.0,95324.0,0.68135965]
[1745838391903,0.0004242,95325.0,95324.0,0.78335965]
[1745838392499,0.0004242,95325.0,95324.0,1.28335965]
[1745838392907,0.0004242,95325.0,95324.0,0.84135965]
[1745838393170,0.0004242,95325.0,95324.0,1.14335965]
[1745838393311,0.0004242,95325.0,95324.0,1.48335965]
[1745838394134,0.0004242,95325.0,95324.0,0.9335489]
[1745838394340,0.0004242,95325.0,95324.0,1.2735489]
[1745838395142,0.0004242,95325.0,95324.0,1.1715489]
[1745838395347,0.0004242,95325.0,95324.0,1.2735489]
[1745838395543,0.0004242,95325.0,95324.0,1.3217489]
[1745838395748,0.0004242,95325.0,95324.0,1.53155965]
[1745838396976,1e-08,95339.0,95338.0,0.76432079]
[1745838397183,1e-08,95339.0,95338.0,0.87121093]
[1745838397390,1e-08,95339.0,95338.0,0.98379441]
[1745838397761,1e-08,95339.0,95338.0,0.99435831]
[1745838397963,1e-08,95339.0,95338.0,0.65435831]
[1745838398302,0.00600001,95339.0,95338.0,0.99435831]
[1745838398686,0.00900001,95339.0,95338.0,0.99435831]
[1745838398891,0.00600001,95339.0,95338.0,0.99435831]
[1745838399336,0.00300001,95339.0,95338.0,0.99435831]
[1745838399738,0.00700001,95339.0,95338.0,0.99435831]
[1745838400344,0.00700001,95339.0,95338.0,0.65435831]
[1745838400865,0.02656497,95339.0,95338.0,0.65435831]
[1745838401078,0.000998,95340.0,95339.0,0.56431859]
[1745838401279,0.000998,95340.0,95339.0,0.68149084]
[1745838401479,0.000998,95340.0,95339.0,0.34149084]
[1745838401827,0.000998,95340.0,95339.0,0.68149084]
[1745838402397,0.000998,95340.0,95339.0,0.78349084]
[1745838402968,0.00654156,95364.0,95362.0,0.01454085]
[1745838403192,0.07,95404.0,95378.0,0.76423281]
[1745838403393,0.07,95404.0,95388.0,0.76421082]
[1745838403566,0.07,95404.0,95394.0,0.54965679]
[1745838403786,0.07,95404.0,95394.0,0.66619764]
[1745838404100,0.07,95404.0,95394.0,0.67622975]
[1745838404308,0.085424,95396.0,95395.0,0.54]
[1745838404505,0.085424,95396.0,95395.0,0.67131148]
[1745838405630,0.085424,95396.0,95395.0,0.45677063]
[1745838405965,0.07074878,95396.0,95395.0,0.45677063]
[1745838406164,0.07806857,95396.0,95395.0,0.45677063]
[1745838406980,0.07806857,95396.0,95395.0,0.00988049]
[1745838407148,0.07806857,95396.0,95394.0,0.000455]
[1745838407149,0.01232478,95395.0,95394.0,0.000455]
[1745838407359,0.01494572,95395.0,95394.0,0.000455]
[1745838407555,0.01508293,95395.0,95394.0,0.000455]
[1745838408053,0.02240272,95395.0,95394.0,0.000455]
[1745838408744,0.01264457,95395.0,95394.0,0.012455]
[1745838409708,0.00731979,95395.0,95394.0,0.012455]
[1745838409908,0.01264457,95395.0,95394.0,0.027455]
[1745838410139,0.00731979,95395.0,95394.0,0.027455]
[1745838410289,0.01264457,95395.0,95394.0,0.027455]
[1745838410805,0.00731979,95395.0,95394.0,0.027455]
[1745838410954,0.01264457,95395.0,95394.0,0.027455]
[1745838412233,0.01264457,95395.0,95394.0,0.13434514]
[1745838412678,0.01264457,95395.0,95394.0,0.14081705]
[1745838413565,0.01626513,95395.0,95394.0,0.03392691]
[1745838413962,0.01626513,95395.0,95394.0,0.027455]
[1745838414290,0.08407566,95395.0,95394.0,0.027455]
[1745838414431,0.0321551,95395.0,95394.0,0.027455]
[1745838414632,0.02683032,95395.0,95394.0,0.027455]
[1745838415146,0.02683032,95395.0,95394.0,0.012455]
[1745838415341,0.00731979,95395.0,95394.0,0.026455]
[1745838415530,0.00731979,95395.0,95394.0,0.014455]
[1745838415734,0.01264457,95395.0,95394.0,0.014455]
[1745838415954,0.01264457,95395.0,95394.0,0.013455]
[1745838416156,0.01264457,95395.0,95394.0,0.015455]
[1745838416413,0.01264457,95395.0,95394.0,0.13534514]
[1745838416820,0.01264457,95395.0,95394.0,0.14181532]
[1745838417859,0.01626518,95395.0,95394.0,0.03492518]
[1745838418046,0.01626518,95395.0,95358.0,0.01035075]
[1745838418047,0.00532478,95365.0,95347.0,0.2]
[1745838418254,0.00532478,95354.0,95351.0,0.01048756]
[1745838418407,0.00532478,95354.0,95352.0,0.3176113]
[1745838418612,0.00532478,95354.0,95353.0,0.34]
[1745838418814,0.00532478,95354.0,95353.0,0.56319099]
[1745838419018,0.00532478,95354.0,95353.0,0.54865014]
[1745838419395,0.00532478,95354.0,95353.0,0.55401948]
[1745838421085,0.01532478,95354.0,95353.0,0.11325948]
[1745838421224,0.02432478,95354.0,95353.0,0.11523285]
[1745838423113,0.019,95354.0,95353.0,0.11523285]
[1745838423419,0.02432478,95354.0,95353.0,0.11523285]
[1745838423538,0.02432478,95354.0,95353.0,0.00834271]
[1745838423772,0.03165352,95354.0,95353.0,0.00736934]
[1745838424032,0.03265352,95354.0,95353.0,0.00736934]
[1745838424231,0.03265352,95354.0,95353.0,0.002]
[1745838424439,0.04218369,95354.0,95353.0,0.001]
[1745838424642,0.00532478,95345.0,95344.0,0.00045552]
[1745838425120,0.00632478,95345.0,95344.0,0.00465416]
[1745838425423,0.01265352,95345.0,95344.0,0.00471294]
[1745838425729,0.01265352,95345.0,95344.0,0.11160308]
[1745838425937,0.01365352,95345.0,95344.0,0.11960308]
[1745838426140,0.01265352,95345.0,95344.0,0.11160308]
[1745838426548,0.00632478,95345.0,95344.0,0.11760308]
[1745838427678,0.00932478,95345.0,95344.0,0.11760308]
[1745838427804,0.00532478,95345.0,95344.0,0.11160308]